Department Family,Entity,Date,Expense Type,Expense Area,Supplier,Supplier Type,Transaction Number,Amount,Description,Expenditure Type
Land Registry,Land Registry,02/09/2013,Croydon Office,Rates Payable,Croydon Council,Large,212979,27987,Rates Payable,Administration
Land Registry,Land Registry,02/09/2013,Birkenhead Office,Rates Payable,Wirral Metrpolitan Borough Council,Large,212985,24021,Rates Payable,Administration
Land Registry,Land Registry,03/09/2013,Property Asset Management Group,Service Charges,Capita Property and Infrastructure Limited,Large,967353,26194.5,Service Charges,Administration
Land Registry,Land Registry,04/09/2013,Nottingham Office,Rent Payable,Dtz Debenham Tie Leung Ltd,SME,212988,-342.62,Rent Payable,Administration
Land Registry,Land Registry,04/09/2013,Durham Office,Rates Payable,Durham County Council,Large,212989,1225,Rates Payable,Administration
Land Registry,Land Registry,04/09/2013,Nottingham Office,Rent Payable,Dtz Debenham Tie Leung Ltd,SME,212988,9882,Rent Payable,Administration
Land Registry,Land Registry,05/09/2013,Croydon Office,Reprographic Copy Costs,Canon (UK) Ltd,Large,967878,-41102.03,Reprographic Copy Costs,Administration
Land Registry,Land Registry,05/09/2013,Croydon Office,Reprographic Copy Costs,Canon (UK) Ltd,Large,967878,33273.28,Reprographic Copy Costs,Administration
Land Registry,Land Registry,05/09/2013,IS Service Delivery,Computer Equipment Maintenance,CGI IT UK Limited,Large,967879,86872,Computer Equipment Maintenance,Administration
Land Registry,Land Registry,05/09/2013,Weymouth Office,Rates Payable,West Dorset District Council,Large,213008,18487,Rates Payable,Administration
Land Registry,Land Registry,09/09/2013,Wales Office,Letter Post,Royal Mail,Large,968416,6998.94,Letter Post,Administration
Land Registry,Land Registry,09/09/2013,Durham Office,Letter Post,Royal Mail,Large,968416,8274.22,Letter Post,Administration
Land Registry,Land Registry,09/09/2013,Peterborough Office,Letter Post,Royal Mail,Large,968416,2792.63,Letter Post,Administration
Land Registry,Land Registry,09/09/2013,Fylde Office,Letter Post,Royal Mail,Large,968416,11102.78,Letter Post,Administration
Land Registry,Land Registry,09/09/2013,Croydon Office,Letter Post,Royal Mail,Large,968416,2404.57,Letter Post,Administration
Land Registry,Land Registry,09/09/2013,Gloucester Office,Letter Post,Royal Mail,Large,968416,5985.56,Letter Post,Administration
Land Registry,Land Registry,09/09/2013,Leicester Office,Letter Post,Royal Mail,Large,968416,2723.78,Letter Post,Administration
Land Registry,Land Registry,09/09/2013,Nottingham Office,Letter Post,Royal Mail,Large,968416,4697.57,Letter Post,Administration
Land Registry,Land Registry,09/09/2013,Plymouth Office,Letter Post,Royal Mail,Large,968416,3428.76,Letter Post,Administration
Land Registry,Land Registry,09/09/2013,Weymouth Office,Letter Post,Royal Mail,Large,968416,3151.04,Letter Post,Administration
Land Registry,Land Registry,09/09/2013,Telford Office,Letter Post,Royal Mail,Large,968416,2954.95,Letter Post,Administration
Land Registry,Land Registry,09/09/2013,Coventry Office,Letter Post,Royal Mail,Large,968416,13435.36,Letter Post,Administration
Land Registry,Land Registry,09/09/2013,Hull Office,Letter Post,Royal Mail,Large,968416,2983.57,Letter Post,Administration
Land Registry,Land Registry,09/09/2013,Birkenhead Office,Letter Post,Royal Mail,Large,968416,8348.87,Letter Post,Administration
Land Registry,Land Registry,09/09/2013,Land Charges,Letter Post,Royal Mail,Large,968416,1142.9,Letter Post,Administration
Land Registry,Land Registry,09/09/2013,Central Facilities Management Team,Letter Post,Royal Mail,Large,968416,89.32,Letter Post,Administration
Land Registry,Land Registry,09/09/2013,IS Service Delivery,Letter Post,Royal Mail,Large,968416,15881.63,Letter Post,Administration
Land Registry,Land Registry,09/09/2013,Peterborough Office,Parcel and Datapost,Royal Mail,Large,968416,4.84,Parcel and Datapost,Administration
Land Registry,Land Registry,09/09/2013,Forward Scanning,Maps & Plans Data Migration,TNT (UK) Ltd,Large,968419,215357.92,Maps & Plans Data Migration,Administration
Land Registry,Land Registry,10/09/2013,HR,National Medical Expenses,Health Management Ltd,Large,968597,38199.67,National Medical Expenses,Administration
Land Registry,Land Registry,10/09/2013,Hull Office,Rates Payable,Kingston Upon Hull City Council,Large,213011,13424,Rates Payable,Administration
Land Registry,Land Registry,11/09/2013,Finance Director,Employment Agency Staff Costs,Penna Plc,Large,968835,22040,Employment Agency Staff Costs,Administration
Land Registry,Land Registry,16/09/2013,Dir: (Statutory) Commercial & Customer,Professional Services,Specialist Computer Centres Plc - SCC,Large,969502,20459.86,Professional Services,Administration
Land Registry,Land Registry,16/09/2013,Dir: (Statutory) Commercial & Customer,Computer Equipment Non HP Licences,Specialist Computer Centres Plc - SCC,Large,969502,91254.68,Computer Equipment Non HP Licences,Administration
Land Registry,Land Registry,16/09/2013,Nottingham Office,Rates Payable,Nottingham City Council,Large,801294,968.6,Rates Payable,Administration
Land Registry,Land Registry,17/09/2013,Fylde Office,Security Expenses,Carillion Services Ltd,Large,969787,2752.61,Security Expenses,Administration
Land Registry,Land Registry,17/09/2013,Durham Office,FF&F:Maintenance,Carillion Services Ltd,Large,969787,187.72,FF&F:Maintenance,Administration
Land Registry,Land Registry,17/09/2013,Weymouth Office,Gas,Carillion Services Ltd,Large,969787,398.54,Gas,Administration
Land Registry,Land Registry,17/09/2013,RFS1 - Telford,Gas,Carillion Services Ltd,Large,969787,321.63,Gas,Administration
Land Registry,Land Registry,17/09/2013,Telford Office,Gas,Carillion Services Ltd,Large,969787,783.68,Gas,Administration
Land Registry,Land Registry,17/09/2013,Telford Office,Electricity,Carillion Services Ltd,Large,969787,4955.05,Electricity,Administration
Land Registry,Land Registry,17/09/2013,Birkenhead Office,Gas,Carillion Services Ltd,Large,969787,405.39,Gas,Administration
Land Registry,Land Registry,17/09/2013,Birkenhead Office,Office Cleaning Expenses,Carillion Services Ltd,Large,969787,6056.18,Office Cleaning Expenses,Administration
Land Registry,Land Registry,17/09/2013,Birkenhead Office,Electricity,Carillion Services Ltd,Large,969787,3197.6,Electricity,Administration
Land Registry,Land Registry,17/09/2013,Wales Office,Gas,Carillion Services Ltd,Large,969787,198.52,Gas,Administration
Land Registry,Land Registry,17/09/2013,Weymouth Office,Waste Disposal,Carillion Services Ltd,Large,969787,230.89,Waste Disposal,Administration
Land Registry,Land Registry,17/09/2013,Wales Office,Electricity,Carillion Services Ltd,Large,969787,5059.71,Electricity,Administration
Land Registry,Land Registry,17/09/2013,Croydon Office,Security Expenses,Carillion Services Ltd,Large,969787,9548.76,Security Expenses,Administration
Land Registry,Land Registry,17/09/2013,Central Facilities Management Team,Gas,Carillion Services Ltd,Large,969787,254.19,Gas,Administration
Land Registry,Land Registry,17/09/2013,Croydon Office,FF&F:Maintenance,Carillion Services Ltd,Large,969787,187.72,FF&F:Maintenance,Administration
Land Registry,Land Registry,17/09/2013,Hull Office,Electricity,Carillion Services Ltd,Large,969787,6567.32,Electricity,Administration
Land Registry,Land Registry,17/09/2013,Telford Office,Water,Carillion Services Ltd,Large,969787,2355.47,Water,Administration
Land Registry,Land Registry,17/09/2013,Fylde Office,Electricity,Carillion Services Ltd,Large,969787,4084.35,Electricity,Administration
Land Registry,Land Registry,17/09/2013,Durham Office,Electricity,Carillion Services Ltd,Large,969787,4319.99,Electricity,Administration
Land Registry,Land Registry,17/09/2013,Birkenhead Office,Security Expenses,Carillion Services Ltd,Large,969787,3401.09,Security Expenses,Administration
Land Registry,Land Registry,17/09/2013,Durham Office,Gas,Carillion Services Ltd,Large,969787,370.98,Gas,Administration
Land Registry,Land Registry,17/09/2013,Coventry Office,Electricity,Carillion Services Ltd,Large,969787,5422.66,Electricity,Administration
Land Registry,Land Registry,17/09/2013,Coventry Office,FF&F:Maintenance,Carillion Services Ltd,Large,969787,187.72,FF&F:Maintenance,Administration
Land Registry,Land Registry,17/09/2013,Coventry Office,Pest Control,Carillion Services Ltd,Large,969787,55.74,Pest Control,Administration
Land Registry,Land Registry,17/09/2013,Leicester Office,Gas,Carillion Services Ltd,Large,969787,228.12,Gas,Administration
Land Registry,Land Registry,17/09/2013,Weymouth Office,Property Maintenance,Carillion Services Ltd,Large,969787,2812.47,Property Maintenance,Administration
Land Registry,Land Registry,17/09/2013,Fylde Office,Pest Control,Carillion Services Ltd,Large,969787,41.94,Pest Control,Administration
Land Registry,Land Registry,17/09/2013,Hull Office,Water,Carillion Services Ltd,Large,969787,825.68,Water,Administration
Land Registry,Land Registry,17/09/2013,RFS1 - Telford,Electricity,Carillion Services Ltd,Large,969787,28,Electricity,Administration
Land Registry,Land Registry,17/09/2013,Coventry Office,Gas,Carillion Services Ltd,Large,969787,851.52,Gas,Administration
Land Registry,Land Registry,17/09/2013,Leicester Office,Water,Carillion Services Ltd,Large,969787,2962.31,Water,Administration
Land Registry,Land Registry,17/09/2013,Leicester Office,Electricity,Carillion Services Ltd,Large,969787,3351.88,Electricity,Administration
Land Registry,Land Registry,17/09/2013,Wales Office,Security Expenses,Carillion Services Ltd,Large,969787,3053.93,Security Expenses,Administration
Land Registry,Land Registry,17/09/2013,Gloucester Office,Gas,Carillion Services Ltd,Large,969787,319.11,Gas,Administration
Land Registry,Land Registry,17/09/2013,Hull Office,Gas,Carillion Services Ltd,Large,969787,467.47,Gas,Administration
Land Registry,Land Registry,17/09/2013,RFS5 - Durham Belmont,Gas,Carillion Services Ltd,Large,969787,207.9,Gas,Administration
Land Registry,Land Registry,17/09/2013,Fylde Office,Gas,Carillion Services Ltd,Large,969787,618.55,Gas,Administration
Land Registry,Land Registry,17/09/2013,Birkenhead Office,Property Maintenance,Carillion Services Ltd,Large,969787,5066.56,Property Maintenance,Administration
Land Registry,Land Registry,17/09/2013,Durham Office,Security Expenses,Carillion Services Ltd,Large,969787,3616.03,Security Expenses,Administration
Land Registry,Land Registry,17/09/2013,Coventry Office,Waste Disposal,Carillion Services Ltd,Large,969787,358.64,Waste Disposal,Administration
Land Registry,Land Registry,17/09/2013,Fylde Office,FF&F:Maintenance,Carillion Services Ltd,Large,969787,187.71,FF&F:Maintenance,Administration
Land Registry,Land Registry,17/09/2013,Weymouth Office,Electricity,Carillion Services Ltd,Large,969787,3297.35,Electricity,Administration
Land Registry,Land Registry,17/09/2013,Coventry Office,Water,Carillion Services Ltd,Large,969787,1848.98,Water,Administration
Land Registry,Land Registry,17/09/2013,Telford Office,Office Cleaning Expenses,Carillion Services Ltd,Large,969787,5452.12,Office Cleaning Expenses,Administration
Land Registry,Land Registry,17/09/2013,Gloucester Office,Water,Carillion Services Ltd,Large,969787,950.72,Water,Administration
Land Registry,Land Registry,17/09/2013,Gloucester Office,Electricity,Carillion Services Ltd,Large,969787,4870.51,Electricity,Administration
Land Registry,Land Registry,17/09/2013,Wales Office,Waste Disposal,Carillion Services Ltd,Large,969787,530.18,Waste Disposal,Administration
Land Registry,Land Registry,17/09/2013,Croydon Office,Property Maintenance,Carillion Services Ltd,Large,969787,7354.33,Property Maintenance,Administration
Land Registry,Land Registry,17/09/2013,Croydon Office,Electricity,Carillion Services Ltd,Large,969787,7402.92,Electricity,Administration
Land Registry,Land Registry,17/09/2013,Croydon Office,Gas,Carillion Services Ltd,Large,969787,514.33,Gas,Administration
Land Registry,Land Registry,17/09/2013,Croydon Office,Vending Machine Consumables & Repairs,Carillion Services Ltd,Large,969787,194.43,Vending Machine Consumables & Repairs,Administration
Land Registry,Land Registry,17/09/2013,Croydon Office,Waste Disposal,Carillion Services Ltd,Large,969787,252.74,Waste Disposal,Administration
Land Registry,Land Registry,17/09/2013,Gloucester Office,Office Cleaning Expenses,Carillion Services Ltd,Large,969787,6164.49,Office Cleaning Expenses,Administration
Land Registry,Land Registry,17/09/2013,Gloucester Office,Waste Disposal,Carillion Services Ltd,Large,969787,242.53,Waste Disposal,Administration
Land Registry,Land Registry,17/09/2013,Gloucester Office,Security Expenses,Carillion Services Ltd,Large,969787,10701.02,Security Expenses,Administration
Land Registry,Land Registry,17/09/2013,Gloucester Office,FF&F:Maintenance,Carillion Services Ltd,Large,969787,187.72,FF&F:Maintenance,Administration
Land Registry,Land Registry,17/09/2013,Leicester Office,FF&F:Maintenance,Carillion Services Ltd,Large,969787,279.3,FF&F:Maintenance,Administration
Land Registry,Land Registry,17/09/2013,Croydon Office,Office Cleaning Expenses,Carillion Services Ltd,Large,969787,6321.38,Office Cleaning Expenses,Administration
Land Registry,Land Registry,17/09/2013,Durham Office,Pest Control,Carillion Services Ltd,Large,969787,51.35,Pest Control,Administration
Land Registry,Land Registry,17/09/2013,Gloucester Office,Property Maintenance,Carillion Services Ltd,Large,969787,3403.97,Property Maintenance,Administration
Land Registry,Land Registry,17/09/2013,Birkenhead Office,Waste Disposal,Carillion Services Ltd,Large,969787,641.36,Waste Disposal,Administration
Land Registry,Land Registry,17/09/2013,Peterborough Office,Vending Machine Consumables & Repairs,Carillion Services Ltd,Large,969787,130.04,Vending Machine Consumables & Repairs,Administration
Land Registry,Land Registry,17/09/2013,Hull Office,Grounds Maintenance,Carillion Services Ltd,Large,969787,685.08,Grounds Maintenance,Administration
Land Registry,Land Registry,17/09/2013,Durham Office,Property Maintenance,Carillion Services Ltd,Large,969787,5907.63,Property Maintenance,Administration
Land Registry,Land Registry,17/09/2013,Durham Office,Office Cleaning Expenses,Carillion Services Ltd,Large,969787,8887.51,Office Cleaning Expenses,Administration
Land Registry,Land Registry,17/09/2013,Durham Office,Vending Machine Consumables & Repairs,Carillion Services Ltd,Large,969787,4.43,Vending Machine Consumables & Repairs,Administration
Land Registry,Land Registry,17/09/2013,Durham Office,Waste Disposal,Carillion Services Ltd,Large,969787,375.89,Waste Disposal,Administration
Land Registry,Land Registry,17/09/2013,Weymouth Office,Office Cleaning Expenses,Carillion Services Ltd,Large,969787,4256.8,Office Cleaning Expenses,Administration
Land Registry,Land Registry,17/09/2013,Weymouth Office,Pest Control,Carillion Services Ltd,Large,969787,69.53,Pest Control,Administration
Land Registry,Land Registry,17/09/2013,Weymouth Office,Security Expenses,Carillion Services Ltd,Large,969787,3278.3,Security Expenses,Administration
Land Registry,Land Registry,17/09/2013,Weymouth Office,FF&F:Maintenance,Carillion Services Ltd,Large,969787,279.29,FF&F:Maintenance,Administration
Land Registry,Land Registry,17/09/2013,Peterborough Office,Property Maintenance,Carillion Services Ltd,Large,969787,-137.83,Property Maintenance,Administration
Land Registry,Land Registry,17/09/2013,Peterborough Office,Office Cleaning Expenses,Carillion Services Ltd,Large,969787,3045.06,Office Cleaning Expenses,Administration
Land Registry,Land Registry,17/09/2013,Peterborough Office,Pest Control,Carillion Services Ltd,Large,969787,41.59,Pest Control,Administration
Land Registry,Land Registry,17/09/2013,Peterborough Office,Waste Disposal,Carillion Services Ltd,Large,969787,8.7,Waste Disposal,Administration
Land Registry,Land Registry,17/09/2013,Peterborough Office,Security Expenses,Carillion Services Ltd,Large,969787,148.88,Security Expenses,Administration
Land Registry,Land Registry,17/09/2013,Peterborough Office,FF&F:Maintenance,Carillion Services Ltd,Large,969787,4.55,FF&F:Maintenance,Administration
Land Registry,Land Registry,17/09/2013,Telford Office,Property Maintenance,Carillion Services Ltd,Large,969787,5830.32,Property Maintenance,Administration
Land Registry,Land Registry,17/09/2013,Telford Office,Pest Control,Carillion Services Ltd,Large,969787,47.3,Pest Control,Administration
Land Registry,Land Registry,17/09/2013,Telford Office,Waste Disposal,Carillion Services Ltd,Large,969787,288.24,Waste Disposal,Administration
Land Registry,Land Registry,17/09/2013,Telford Office,Security Expenses,Carillion Services Ltd,Large,969787,2995.04,Security Expenses,Administration
Land Registry,Land Registry,17/09/2013,Telford Office,FF&F:Maintenance,Carillion Services Ltd,Large,969787,187.71,FF&F:Maintenance,Administration
Land Registry,Land Registry,17/09/2013,Coventry Office,Property Maintenance,Carillion Services Ltd,Large,969787,10982.26,Property Maintenance,Administration
Land Registry,Land Registry,17/09/2013,Coventry Office,Office Cleaning Expenses,Carillion Services Ltd,Large,969787,7856.57,Office Cleaning Expenses,Administration
Land Registry,Land Registry,17/09/2013,Coventry Office,Vending Machine Consumables & Repairs,Carillion Services Ltd,Large,969787,227.54,Vending Machine Consumables & Repairs,Administration
Land Registry,Land Registry,17/09/2013,Coventry Office,Security Expenses,Carillion Services Ltd,Large,969787,8102.27,Security Expenses,Administration
Land Registry,Land Registry,17/09/2013,Hull Office,Property Maintenance,Carillion Services Ltd,Large,969787,6035.89,Property Maintenance,Administration
Land Registry,Land Registry,17/09/2013,Hull Office,Office Cleaning Expenses,Carillion Services Ltd,Large,969787,5442.58,Office Cleaning Expenses,Administration
Land Registry,Land Registry,17/09/2013,Hull Office,Pest Control,Carillion Services Ltd,Large,969787,52.4,Pest Control,Administration
Land Registry,Land Registry,17/09/2013,Hull Office,Vending Machine Consumables & Repairs,Carillion Services Ltd,Large,969787,220.62,Vending Machine Consumables & Repairs,Administration
Land Registry,Land Registry,17/09/2013,Hull Office,Waste Disposal,Carillion Services Ltd,Large,969787,148.43,Waste Disposal,Administration
Land Registry,Land Registry,17/09/2013,Hull Office,Security Expenses,Carillion Services Ltd,Large,969787,3383.45,Security Expenses,Administration
Land Registry,Land Registry,17/09/2013,Hull Office,FF&F:Maintenance,Carillion Services Ltd,Large,969787,187.72,FF&F:Maintenance,Administration
Land Registry,Land Registry,17/09/2013,Leicester Office,Property Maintenance,Carillion Services Ltd,Large,969787,8507.9,Property Maintenance,Administration
Land Registry,Land Registry,17/09/2013,Leicester Office,Office Cleaning Expenses,Carillion Services Ltd,Large,969787,4057.59,Office Cleaning Expenses,Administration
Land Registry,Land Registry,17/09/2013,Leicester Office,Vending Machine Consumables & Repairs,Carillion Services Ltd,Large,969787,162.89,Vending Machine Consumables & Repairs,Administration
Land Registry,Land Registry,17/09/2013,Leicester Office,Waste Disposal,Carillion Services Ltd,Large,969787,341.81,Waste Disposal,Administration
Land Registry,Land Registry,17/09/2013,Leicester Office,Security Expenses,Carillion Services Ltd,Large,969787,2888.74,Security Expenses,Administration
Land Registry,Land Registry,17/09/2013,Wales Office,Property Maintenance,Carillion Services Ltd,Large,969787,5069.35,Property Maintenance,Administration
Land Registry,Land Registry,17/09/2013,Wales Office,Office Cleaning Expenses,Carillion Services Ltd,Large,969787,5075.17,Office Cleaning Expenses,Administration
Land Registry,Land Registry,17/09/2013,Wales Office,Pest Control,Carillion Services Ltd,Large,969787,61.71,Pest Control,Administration
Land Registry,Land Registry,17/09/2013,Wales Office,FF&F:Maintenance,Carillion Services Ltd,Large,969787,370.87,FF&F:Maintenance,Administration
Land Registry,Land Registry,17/09/2013,Nottingham Office,Property Maintenance,Carillion Services Ltd,Large,969787,2370.8,Property Maintenance,Administration
Land Registry,Land Registry,17/09/2013,Nottingham Office,Electricity,Carillion Services Ltd,Large,969787,8914.7,Electricity,Administration
Land Registry,Land Registry,17/09/2013,Nottingham Office,Gas,Carillion Services Ltd,Large,969787,391.08,Gas,Administration
Land Registry,Land Registry,17/09/2013,Nottingham Office,Water,Carillion Services Ltd,Large,969787,1620.26,Water,Administration
Land Registry,Land Registry,17/09/2013,Nottingham Office,Office Cleaning Expenses,Carillion Services Ltd,Large,969787,6437.69,Office Cleaning Expenses,Administration
Land Registry,Land Registry,17/09/2013,Nottingham Office,Pest Control,Carillion Services Ltd,Large,969787,131.25,Pest Control,Administration
Land Registry,Land Registry,17/09/2013,Nottingham Office,Waste Disposal,Carillion Services Ltd,Large,969787,299.39,Waste Disposal,Administration
Land Registry,Land Registry,17/09/2013,Nottingham Office,Security Expenses,Carillion Services Ltd,Large,969787,3309.31,Security Expenses,Administration
Land Registry,Land Registry,17/09/2013,Nottingham Office,FF&F:Maintenance,Carillion Services Ltd,Large,969787,4.55,FF&F:Maintenance,Administration
Land Registry,Land Registry,17/09/2013,Birkenhead Office,Grounds Maintenance,Carillion Services Ltd,Large,969787,404.31,Grounds Maintenance,Administration
Land Registry,Land Registry,17/09/2013,Birkenhead Office,Pest Control,Carillion Services Ltd,Large,969787,44.23,Pest Control,Administration
Land Registry,Land Registry,17/09/2013,Birkenhead Office,FF&F:Maintenance,Carillion Services Ltd,Large,969787,187.71,FF&F:Maintenance,Administration
Land Registry,Land Registry,17/09/2013,Fylde Office,Property Maintenance,Carillion Services Ltd,Large,969787,3850.67,Property Maintenance,Administration
Land Registry,Land Registry,17/09/2013,Fylde Office,Office Cleaning Expenses,Carillion Services Ltd,Large,969787,5528.08,Office Cleaning Expenses,Administration
Land Registry,Land Registry,17/09/2013,Fylde Office,Vending Machine Consumables & Repairs,Carillion Services Ltd,Large,969787,224.2,Vending Machine Consumables & Repairs,Administration
Land Registry,Land Registry,17/09/2013,Fylde Office,Waste Disposal,Carillion Services Ltd,Large,969787,120.05,Waste Disposal,Administration
Land Registry,Land Registry,17/09/2013,RFS5 - Durham Belmont,Property Maintenance,Carillion Services Ltd,Large,969787,5211.32,Property Maintenance,Administration
Land Registry,Land Registry,17/09/2013,RFS5 - Durham Belmont,Electricity,Carillion Services Ltd,Large,969787,-2944.72,Electricity,Administration
Land Registry,Land Registry,17/09/2013,RFS4 - Coventry,Property Maintenance,Carillion Services Ltd,Large,969787,55.5,Property Maintenance,Administration
Land Registry,Land Registry,17/09/2013,RFS4 - Coventry,Office Cleaning Expenses,Carillion Services Ltd,Large,969787,248.61,Office Cleaning Expenses,Administration
Land Registry,Land Registry,17/09/2013,RFS1 - Telford,Property Maintenance,Carillion Services Ltd,Large,969787,1704.71,Property Maintenance,Administration
Land Registry,Land Registry,17/09/2013,RFS8 - Birkenhead,Office Cleaning Expenses,Carillion Services Ltd,Large,969787,7.55,Office Cleaning Expenses,Administration
Land Registry,Land Registry,17/09/2013,Central Facilities Management Team,Property Maintenance,Carillion Services Ltd,Large,969787,1283.85,Property Maintenance,Administration
Land Registry,Land Registry,17/09/2013,Central Facilities Management Team,Electricity,Carillion Services Ltd,Large,969787,1362.5,Electricity,Administration
Land Registry,Land Registry,17/09/2013,Central Facilities Management Team,Water,Carillion Services Ltd,Large,969787,212.7,Water,Administration
Land Registry,Land Registry,17/09/2013,Central Facilities Management Team,Waste Disposal,Carillion Services Ltd,Large,969787,60.7,Waste Disposal,Administration
Land Registry,Land Registry,17/09/2013,Central Facilities Management Team,Security Expenses,Carillion Services Ltd,Large,969787,939.73,Security Expenses,Administration
Land Registry,Land Registry,17/09/2013,Weymouth Office,Vending Machine Consumables & Repairs,Carillion Services Ltd,Large,969787,125.09,Vending Machine Consumables & Repairs,Administration
Land Registry,Land Registry,17/09/2013,Fylde Office,Grounds Maintenance,Carillion Services Ltd,Large,969787,1397.98,Grounds Maintenance,Administration
Land Registry,Land Registry,17/09/2013,Independent Complaints Reviewer,Electricity,Carillion Services Ltd,Large,969787,-544.41,Electricity,Administration
Land Registry,Land Registry,17/09/2013,Leicester Office,Pest Control,Carillion Services Ltd,Large,969787,58.2,Pest Control,Administration
Land Registry,Land Registry,17/09/2013,Croydon Office,Pest Control,Carillion Services Ltd,Large,969787,42.56,Pest Control,Administration
Land Registry,Land Registry,17/09/2013,Telford Office,Grounds Maintenance,Carillion Services Ltd,Large,969787,1264.14,Grounds Maintenance,Administration
Land Registry,Land Registry,17/09/2013,Weymouth Office,Grounds Maintenance,Carillion Services Ltd,Large,969787,740.58,Grounds Maintenance,Administration
Land Registry,Land Registry,17/09/2013,Leicester Office,Grounds Maintenance,Carillion Services Ltd,Large,969787,254.75,Grounds Maintenance,Administration
Land Registry,Land Registry,17/09/2013,Gloucester Office,Grounds Maintenance,Carillion Services Ltd,Large,969787,691.95,Grounds Maintenance,Administration
Land Registry,Land Registry,17/09/2013,Durham Office,Grounds Maintenance,Carillion Services Ltd,Large,969787,973.85,Grounds Maintenance,Administration
Land Registry,Land Registry,17/09/2013,Gloucester Office,Pest Control,Carillion Services Ltd,Large,969787,49.06,Pest Control,Administration
Land Registry,Land Registry,17/09/2013,Gloucester Computer Centre,Electricity,Carillion Services Ltd,Large,969787,29226.74,Electricity,Administration
Land Registry,Land Registry,17/09/2013,Gloucester Computer Centre,Security Expenses,Carillion Services Ltd,Large,969787,8308.09,Security Expenses,Administration
Land Registry,Land Registry,17/09/2013,Gloucester Computer Centre,Office Cleaning Expenses,Carillion Services Ltd,Large,969787,10.68,Office Cleaning Expenses,Administration
Land Registry,Land Registry,17/09/2013,Nottingham Office,Grounds Maintenance,Carillion Services Ltd,Large,969787,104.9,Grounds Maintenance,Administration
Land Registry,Land Registry,17/09/2013,Gloucester Computer Centre,Gas,Carillion Services Ltd,Large,969787,64,Gas,Administration
Land Registry,Land Registry,17/09/2013,Gloucester Computer Centre,Water,Carillion Services Ltd,Large,969787,166.27,Water,Administration
Land Registry,Land Registry,17/09/2013,Gloucester Computer Centre,Waste Disposal,Carillion Services Ltd,Large,969787,93.09,Waste Disposal,Administration
Land Registry,Land Registry,17/09/2013,Gloucester Computer Centre,Property Maintenance,Carillion Services Ltd,Large,969787,6851.41,Property Maintenance,Administration
Land Registry,Land Registry,17/09/2013,RFS15 - Plymouth Drakes Hill Court,Electricity,Carillion Services Ltd,Large,969787,2043.59,Electricity,Administration
Land Registry,Land Registry,17/09/2013,RFS15 - Plymouth Drakes Hill Court,Gas,Carillion Services Ltd,Large,969787,511.58,Gas,Administration
Land Registry,Land Registry,17/09/2013,RFS15 - Plymouth Drakes Hill Court,Water,Carillion Services Ltd,Large,969787,50.91,Water,Administration
Land Registry,Land Registry,17/09/2013,RFS15 - Plymouth Drakes Hill Court,Office Cleaning Expenses,Carillion Services Ltd,Large,969787,521.67,Office Cleaning Expenses,Administration
Land Registry,Land Registry,17/09/2013,Coventry Office,Grounds Maintenance,Carillion Services Ltd,Large,969787,808.36,Grounds Maintenance,Administration
Land Registry,Land Registry,17/09/2013,Gloucester Office,Vending Machine Consumables & Repairs,Carillion Services Ltd,Large,969787,737.52,Vending Machine Consumables & Repairs,Administration
Land Registry,Land Registry,17/09/2013,Wales Office,Vending Machine Consumables & Repairs,Carillion Services Ltd,Large,969787,187.32,Vending Machine Consumables & Repairs,Administration
Land Registry,Land Registry,17/09/2013,Wales Office,Grounds Maintenance,Carillion Services Ltd,Large,969787,550.01,Grounds Maintenance,Administration
Land Registry,Land Registry,17/09/2013,Gloucester Computer Centre,Pest Control,Carillion Services Ltd,Large,969787,28.64,Pest Control,Administration
Land Registry,Land Registry,17/09/2013,RFS15 - Plymouth Drakes Hill Court,FF&F:Maintenance,Carillion Services Ltd,Large,969787,91.58,FF&F:Maintenance,Administration
Land Registry,Land Registry,17/09/2013,RFS15 - Plymouth Drakes Hill Court,Waste Disposal,Carillion Services Ltd,Large,969787,20.01,Waste Disposal,Administration
Land Registry,Land Registry,17/09/2013,RFS15 - Plymouth Drakes Hill Court,Property Maintenance,Carillion Services Ltd,Large,969787,3370.26,Property Maintenance,Administration
Land Registry,Land Registry,17/09/2013,RFS15 - Plymouth Drakes Hill Court,Pest Control,Carillion Services Ltd,Large,969787,543.33,Pest Control,Administration
Land Registry,Land Registry,17/09/2013,Telford Office,Vending Machine Consumables & Repairs,Carillion Services Ltd,Large,969787,232.43,Vending Machine Consumables & Repairs,Administration
Land Registry,Land Registry,17/09/2013,Gloucester Computer Centre,FF&F:Maintenance,Carillion Services Ltd,Large,969787,183.16,FF&F:Maintenance,Administration
Land Registry,Land Registry,17/09/2013,Croydon Office,Grounds Maintenance,Carillion Services Ltd,Large,969787,98.33,Grounds Maintenance,Administration
Land Registry,Land Registry,17/09/2013,Gloucester Computer Centre,Grounds Maintenance,Carillion Services Ltd,Large,969787,157.79,Grounds Maintenance,Administration
Land Registry,Land Registry,17/09/2013,Peterborough Office,Grounds Maintenance,Carillion Services Ltd,Large,969787,17.1,Grounds Maintenance,Administration
Land Registry,Land Registry,17/09/2013,RFS15 - Plymouth Drakes Hill Court,Grounds Maintenance,Carillion Services Ltd,Large,969787,297.27,Grounds Maintenance,Administration
Land Registry,Land Registry,17/09/2013,Nottingham Office,Vending Machine Consumables & Repairs,Carillion Services Ltd,Large,969787,130.01,Vending Machine Consumables & Repairs,Administration
Land Registry,Land Registry,17/09/2013,Governance & Policy,FM Managed Services,Carillion Services Ltd,Large,969787,11284.77,Facilities Managed Service,Administration
Land Registry,Land Registry,17/09/2013,Governance & Policy,FM Ext Helpdesk,Carillion Services Ltd,Large,969787,1270.76,Facilities External Help Desk,Administration
Land Registry,Land Registry,17/09/2013,RFS15 - Plymouth Drakes Hill Court,FM Managed Services,Carillion Services Ltd,Large,969787,671.51,Facilities Managed Service,Administration
Land Registry,Land Registry,17/09/2013,RFS15 - Plymouth Drakes Hill Court,FM Ext Helpdesk,Carillion Services Ltd,Large,969787,118.44,Facilities External Help Desk,Administration
Land Registry,Land Registry,17/09/2013,Weymouth Office,FM Managed Services,Carillion Services Ltd,Large,969787,4085.24,Facilities Managed Service,Administration
Land Registry,Land Registry,17/09/2013,Weymouth Office,FM Ext Helpdesk,Carillion Services Ltd,Large,969787,316.6,Facilities External Help Desk,Administration
Land Registry,Land Registry,17/09/2013,Croydon Office,FM Managed Services,Carillion Services Ltd,Large,969787,8238.17,Facilities Managed Service,Administration
Land Registry,Land Registry,17/09/2013,Croydon Office,FM Ext Helpdesk,Carillion Services Ltd,Large,969787,486.88,Facilities External Help Desk,Administration
Land Registry,Land Registry,17/09/2013,Wales Office,FM Managed Services,Carillion Services Ltd,Large,969787,7720.4,Facilities Managed Service,Administration
Land Registry,Land Registry,17/09/2013,Wales Office,FM Ext Helpdesk,Carillion Services Ltd,Large,969787,386.81,Facilities External Help Desk,Administration
Land Registry,Land Registry,17/09/2013,Coventry Office,FM Managed Services,Carillion Services Ltd,Large,969787,8031.34,Facilities Managed Service,Administration
Land Registry,Land Registry,17/09/2013,Coventry Office,FM Ext Helpdesk,Carillion Services Ltd,Large,969787,812.88,Facilities External Help Desk,Administration
Land Registry,Land Registry,17/09/2013,Gloucester Office,FM Managed Services,Carillion Services Ltd,Large,969787,4318.27,Facilities Managed Service,Administration
Land Registry,Land Registry,17/09/2013,Gloucester Office,FM Ext Helpdesk,Carillion Services Ltd,Large,969787,507.95,Facilities External Help Desk,Administration
Land Registry,Land Registry,17/09/2013,Gloucester Computer Centre,FM Managed Services,Carillion Services Ltd,Large,969787,1867.62,Facilities Managed Service,Administration
Land Registry,Land Registry,17/09/2013,Gloucester Computer Centre,FM Ext Helpdesk,Carillion Services Ltd,Large,969787,460.58,Facilities External Help Desk,Administration
Land Registry,Land Registry,17/09/2013,Leicester Office,FM Managed Services,Carillion Services Ltd,Large,969787,3865.04,Facilities Managed Service,Administration
Land Registry,Land Registry,17/09/2013,Leicester Office,FM Ext Helpdesk,Carillion Services Ltd,Large,969787,445.1,Facilities External Help Desk,Administration
Land Registry,Land Registry,17/09/2013,Nottingham Office,FM Managed Services,Carillion Services Ltd,Large,969787,33000.75,Facilities Managed Service,Administration
Land Registry,Land Registry,17/09/2013,Nottingham Office,FM Ext Helpdesk,Carillion Services Ltd,Large,969787,1427.7,Facilities External Help Desk,Administration
Land Registry,Land Registry,17/09/2013,Peterborough Office,FM Managed Services,Carillion Services Ltd,Large,969787,4230.37,Facilities Managed Service,Administration
Land Registry,Land Registry,17/09/2013,Peterborough Office,FM Ext Helpdesk,Carillion Services Ltd,Large,969787,479.23,Facilities External Help Desk,Administration
Land Registry,Land Registry,17/09/2013,Telford Office,FM Managed Services,Carillion Services Ltd,Large,969787,3816.54,Facilities Managed Service,Administration
Land Registry,Land Registry,17/09/2013,Telford Office,FM Ext Helpdesk,Carillion Services Ltd,Large,969787,430.6,Facilities External Help Desk,Administration
Land Registry,Land Registry,17/09/2013,RFS1 - Telford,FM Managed Services,Carillion Services Ltd,Large,969787,349.2,Facilities Managed Service,Administration
Land Registry,Land Registry,17/09/2013,RFS1 - Telford,FM Ext Helpdesk,Carillion Services Ltd,Large,969787,104.4,Facilities External Help Desk,Administration
Land Registry,Land Registry,17/09/2013,Birkenhead Office,FM Managed Services,Carillion Services Ltd,Large,969787,4948.5,Facilities Managed Service,Administration
Land Registry,Land Registry,17/09/2013,Birkenhead Office,FM Ext Helpdesk,Carillion Services Ltd,Large,969787,406.43,Facilities External Help Desk,Administration
Land Registry,Land Registry,17/09/2013,Durham Office,FM Managed Services,Carillion Services Ltd,Large,969787,7824.27,Facilities Managed Service,Administration
Land Registry,Land Registry,17/09/2013,Durham Office,FM Ext Helpdesk,Carillion Services Ltd,Large,969787,507.17,Facilities External Help Desk,Administration
Land Registry,Land Registry,17/09/2013,Fylde Office,FM Managed Services,Carillion Services Ltd,Large,969787,7070.92,Facilities Managed Service,Administration
Land Registry,Land Registry,17/09/2013,Fylde Office,FM Ext Helpdesk,Carillion Services Ltd,Large,969787,356.19,Facilities External Help Desk,Administration
Land Registry,Land Registry,17/09/2013,Hull Office,FM Managed Services,Carillion Services Ltd,Large,969787,4347.74,Facilities Managed Service,Administration
Land Registry,Land Registry,17/09/2013,Hull Office,FM Ext Helpdesk,Carillion Services Ltd,Large,969787,398.87,Facilities External Help Desk,Administration
Land Registry,Land Registry,17/09/2013,RFS4 - Coventry,FM Managed Services,Carillion Services Ltd,Large,969787,13.67,Facilities Managed Service,Administration
Land Registry,Land Registry,17/09/2013,RFS4 - Coventry,FM Ext Helpdesk,Carillion Services Ltd,Large,969787,7.13,Facilities External Help Desk,Administration
Land Registry,Land Registry,17/09/2013,Governance & Policy,Electricity,Carillion Services Ltd,Large,969787,45953.94,Electricity,Administration
Land Registry,Land Registry,17/09/2013,Governance & Policy,Gas,Carillion Services Ltd,Large,969787,766.14,Gas,Administration
Land Registry,Land Registry,17/09/2013,Governance & Policy,Pest Control,Carillion Services Ltd,Large,969787,527.31,Pest Control,Administration
Land Registry,Land Registry,17/09/2013,Governance & Policy,Office Cleaning Expenses,Carillion Services Ltd,Large,969787,9438.98,Office Cleaning Expenses,Administration
Land Registry,Land Registry,17/09/2013,Governance & Policy,Security Expenses,Carillion Services Ltd,Large,969787,22813.44,Security Expenses,Administration
Land Registry,Land Registry,17/09/2013,Governance & Policy,Property Maintenance,Carillion Services Ltd,Large,969787,15629.88,Property Maintenance,Administration
Land Registry,Land Registry,17/09/2013,Governance & Policy,Grounds Maintenance,Carillion Services Ltd,Large,969787,1957.73,Grounds Maintenance,Administration
Land Registry,Land Registry,17/09/2013,Governance & Policy,FF&F:Maintenance,Carillion Services Ltd,Large,969787,554.04,FF&F:Maintenance,Administration
Land Registry,Land Registry,17/09/2013,Peterborough Office,Gas,Carillion Services Ltd,Large,969787,1027.82,Gas,Administration
Land Registry,Land Registry,17/09/2013,Dir: Finance,Gas,Carillion Services Ltd,Large,969787,306.9,Gas,Administration
Land Registry,Land Registry,17/09/2013,Governance & Policy,Waste Disposal,Carillion Services Ltd,Large,969787,2114.37,Waste Disposal,Administration
Land Registry,Land Registry,17/09/2013,Birkenhead Office,Vending Machine Consumables & Repairs,Carillion Services Ltd,Large,969787,745.06,Vending Machine Consumables & Repairs,Administration
Land Registry,Land Registry,17/09/2013,RFS8 - Birkenhead,Vending Machine Consumables & Repairs,Carillion Services Ltd,Large,969787,54.87,Vending Machine Consumables & Repairs,Administration
Land Registry,Land Registry,17/09/2013,Dir: Finance,"Property Management; Advice, Surveys & Inspections",Carillion Services Ltd,Large,969787,763.51,"Property Management; Advice, Surveys & Inspections",Administration
Land Registry,Land Registry,17/09/2013,Governance & Policy,Vending Machine Consumables & Repairs,Carillion Services Ltd,Large,969787,4.43,Vending Machine Consumables & Repairs,Administration
Land Registry,Land Registry,17/09/2013,Central Facilities Management Team,FM Managed Services,Carillion Services Ltd,Large,969787,251.15,Facilities Managed Service,Administration
Land Registry,Land Registry,17/09/2013,Dir: Finance,Electricity,Carillion Services Ltd,Large,969787,987.66,Electricity,Administration
Land Registry,Land Registry,17/09/2013,Fylde Office,Security Expenses,Carillion Services Ltd,Large,969787,341.33,Security Expenses,Administration
Land Registry,Land Registry,17/09/2013,Durham Office,FF&F:Maintenance,Carillion Services Ltd,Large,969787,103.08,FF&F:Maintenance,Administration
Land Registry,Land Registry,17/09/2013,Weymouth Office,Waste Disposal,Carillion Services Ltd,Large,969787,121.18,Waste Disposal,Administration
Land Registry,Land Registry,17/09/2013,Croydon Office,Security Expenses,Carillion Services Ltd,Large,969787,367.97,Security Expenses,Administration
Land Registry,Land Registry,17/09/2013,Weymouth Office,Property Maintenance,Carillion Services Ltd,Large,969787,2273.5,Property Maintenance,Administration
Land Registry,Land Registry,17/09/2013,Wales Office,Security Expenses,Carillion Services Ltd,Large,969787,312.44,Security Expenses,Administration
Land Registry,Land Registry,17/09/2013,Birkenhead Office,Property Maintenance,Carillion Services Ltd,Large,969787,2502.29,Property Maintenance,Administration
Land Registry,Land Registry,17/09/2013,Fylde Office,FF&F:Maintenance,Carillion Services Ltd,Large,969787,159.26,FF&F:Maintenance,Administration
Land Registry,Land Registry,17/09/2013,Wales Office,Waste Disposal,Carillion Services Ltd,Large,969787,543.3,Waste Disposal,Administration
Land Registry,Land Registry,17/09/2013,Croydon Office,Property Maintenance,Carillion Services Ltd,Large,969787,15251.44,Property Maintenance,Administration
Land Registry,Land Registry,17/09/2013,Croydon Office,Waste Disposal,Carillion Services Ltd,Large,969787,191,Waste Disposal,Administration
Land Registry,Land Registry,17/09/2013,Gloucester Office,Waste Disposal,Carillion Services Ltd,Large,969787,292.6,Waste Disposal,Administration
Land Registry,Land Registry,17/09/2013,Gloucester Office,Security Expenses,Carillion Services Ltd,Large,969787,83.46,Security Expenses,Administration
Land Registry,Land Registry,17/09/2013,Gloucester Office,FF&F:Maintenance,Carillion Services Ltd,Large,969787,1434.55,FF&F:Maintenance,Administration
Land Registry,Land Registry,17/09/2013,Gloucester Office,Property Maintenance,Carillion Services Ltd,Large,969787,1187.06,Property Maintenance,Administration
Land Registry,Land Registry,17/09/2013,Durham Office,Property Maintenance,Carillion Services Ltd,Large,969787,12918.17,Property Maintenance,Administration
Land Registry,Land Registry,17/09/2013,Durham Office,Waste Disposal,Carillion Services Ltd,Large,969787,216.42,Waste Disposal,Administration
Land Registry,Land Registry,17/09/2013,Weymouth Office,Pest Control,Carillion Services Ltd,Large,969787,409.28,Pest Control,Administration
Land Registry,Land Registry,17/09/2013,Peterborough Office,Property Maintenance,Carillion Services Ltd,Large,969787,2103.56,Property Maintenance,Administration
Land Registry,Land Registry,17/09/2013,Peterborough Office,Waste Disposal,Carillion Services Ltd,Large,969787,112.05,Waste Disposal,Administration
Land Registry,Land Registry,17/09/2013,Peterborough Office,Security Expenses,Carillion Services Ltd,Large,969787,2277.3,Security Expenses,Administration
Land Registry,Land Registry,17/09/2013,Peterborough Office,FF&F:Maintenance,Carillion Services Ltd,Large,969787,610.5,FF&F:Maintenance,Administration
Land Registry,Land Registry,17/09/2013,Telford Office,Property Maintenance,Carillion Services Ltd,Large,969787,1818.11,Property Maintenance,Administration
Land Registry,Land Registry,17/09/2013,Telford Office,FF&F:Maintenance,Carillion Services Ltd,Large,969787,982.48,FF&F:Maintenance,Administration
Land Registry,Land Registry,17/09/2013,Coventry Office,Property Maintenance,Carillion Services Ltd,Large,969787,5120.21,Property Maintenance,Administration
Land Registry,Land Registry,17/09/2013,Coventry Office,Security Expenses,Carillion Services Ltd,Large,969787,191.05,Security Expenses,Administration
Land Registry,Land Registry,17/09/2013,Hull Office,Property Maintenance,Carillion Services Ltd,Large,969787,17719.88,Property Maintenance,Administration
Land Registry,Land Registry,17/09/2013,Hull Office,Security Expenses,Carillion Services Ltd,Large,969787,76.53,Security Expenses,Administration
Land Registry,Land Registry,17/09/2013,Leicester Office,Property Maintenance,Carillion Services Ltd,Large,969787,9585.97,Property Maintenance,Administration
Land Registry,Land Registry,17/09/2013,Leicester Office,Security Expenses,Carillion Services Ltd,Large,969787,78.11,Security Expenses,Administration
Land Registry,Land Registry,17/09/2013,Wales Office,Property Maintenance,Carillion Services Ltd,Large,969787,4887.25,Property Maintenance,Administration
Land Registry,Land Registry,17/09/2013,Nottingham Office,Property Maintenance,Carillion Services Ltd,Large,969787,9568.2,Property Maintenance,Administration
Land Registry,Land Registry,17/09/2013,Nottingham Office,Security Expenses,Carillion Services Ltd,Large,969787,76.53,Security Expenses,Administration
Land Registry,Land Registry,17/09/2013,Nottingham Office,FF&F:Maintenance,Carillion Services Ltd,Large,969787,2212.48,FF&F:Maintenance,Administration
Land Registry,Land Registry,17/09/2013,Nottingham Office,FF&F:Removals,Carillion Services Ltd,Large,969787,299.6,FF&F:Removals,Administration
Land Registry,Land Registry,17/09/2013,Birkenhead Office,FF&F:Maintenance,Carillion Services Ltd,Large,969787,240.88,FF&F:Maintenance,Administration
Land Registry,Land Registry,17/09/2013,Fylde Office,Property Maintenance,Carillion Services Ltd,Large,969787,4960.51,Property Maintenance,Administration
Land Registry,Land Registry,17/09/2013,Fylde Office,Waste Disposal,Carillion Services Ltd,Large,969787,1556.63,Waste Disposal,Administration
Land Registry,Land Registry,17/09/2013,RFS4 - Coventry,Property Maintenance,Carillion Services Ltd,Large,969787,941.6,Property Maintenance,Administration
Land Registry,Land Registry,17/09/2013,Fylde Office,Grounds Maintenance,Carillion Services Ltd,Large,969787,516.17,Grounds Maintenance,Administration
Land Registry,Land Registry,17/09/2013,Telford Office,Grounds Maintenance,Carillion Services Ltd,Large,969787,131.5,Grounds Maintenance,Administration
Land Registry,Land Registry,17/09/2013,Fylde Office,FF&F:Removals,Carillion Services Ltd,Large,969787,1013.25,FF&F:Removals,Administration
Land Registry,Land Registry,17/09/2013,Durham Office,Grounds Maintenance,Carillion Services Ltd,Large,969787,131.5,Grounds Maintenance,Administration
Land Registry,Land Registry,17/09/2013,Gloucester Computer Centre,Waste Disposal,Carillion Services Ltd,Large,969787,191.17,Waste Disposal,Administration
Land Registry,Land Registry,17/09/2013,Gloucester Computer Centre,Property Maintenance,Carillion Services Ltd,Large,969787,7735.44,Property Maintenance,Administration
Land Registry,Land Registry,17/09/2013,Leicester Office,Hays Document Exchange (DX),Carillion Services Ltd,Large,969787,64.2,DX Postage,Administration
Land Registry,Land Registry,17/09/2013,Governance & Policy,Property Maintenance,Carillion Services Ltd,Large,969787,60772.77,Property Maintenance,Administration
Land Registry,Land Registry,17/09/2013,Governance & Policy,FF&F:Maintenance,Carillion Services Ltd,Large,969787,1960.94,FF&F:Maintenance,Administration
Land Registry,Land Registry,17/09/2013,Governance & Policy,FF&F:Removals,Carillion Services Ltd,Large,969787,933,FF&F:Removals,Administration
Land Registry,Land Registry,17/09/2013,Dir: Finance,Property Management; Other Fees,Carillion Services Ltd,Large,969787,1840.77,Property Management; Other Fees,Administration
Land Registry,Land Registry,17/09/2013,Governance & Policy,Waste Disposal,Carillion Services Ltd,Large,969787,111.12,Waste Disposal,Administration
Land Registry,Land Registry,17/09/2013,Dir: Operations,Property Maintenance,Carillion Services Ltd,Large,969787,46885.26,Property Maintenance,Administration
Land Registry,Land Registry,18/09/2013,Nottingham Office,Rent Payable,Dtz Debenham Tie Leung Ltd,SME,474006,42263.83,Rent Payable,Administration
Land Registry,Land Registry,19/09/2013,Leicester Office,Stationery National Contracts,Banner Business Services Ltd,Large,970263,1145.36,Stationery National Contracts,Administration
Land Registry,Land Registry,19/09/2013,Durham Office,Stationery National Contracts,Banner Business Services Ltd,Large,970263,2597.89,Stationery National Contracts,Administration
Land Registry,Land Registry,19/09/2013,Fylde Office,Stationery National Contracts,Banner Business Services Ltd,Large,970263,1970.15,Stationery National Contracts,Administration
Land Registry,Land Registry,19/09/2013,Croydon Office,Stationery National Contracts,Banner Business Services Ltd,Large,970263,2007.14,Stationery National Contracts,Administration
Land Registry,Land Registry,19/09/2013,Gloucester Office,Stationery National Contracts,Banner Business Services Ltd,Large,970263,2946.38,Stationery National Contracts,Administration
Land Registry,Land Registry,19/09/2013,Nottingham Office,Stationery National Contracts,Banner Business Services Ltd,Large,970263,1529.7,Stationery National Contracts,Administration
Land Registry,Land Registry,19/09/2013,Birkenhead Office,Stationery National Contracts,Banner Business Services Ltd,Large,970263,3165.85,Stationery National Contracts,Administration
Land Registry,Land Registry,19/09/2013,Birkenhead Office,Waste Disposal,Banner Business Services Ltd,Large,970263,1464,Waste Disposal,Administration
Land Registry,Land Registry,19/09/2013,Plymouth Office,Stationery National Contracts,Banner Business Services Ltd,Large,970263,1481.28,Stationery National Contracts,Administration
Land Registry,Land Registry,19/09/2013,Weymouth Office,Stationery National Contracts,Banner Business Services Ltd,Large,970263,1470.88,Stationery National Contracts,Administration
Land Registry,Land Registry,19/09/2013,Peterborough Office,Stationery National Contracts,Banner Business Services Ltd,Large,970263,2667.17,Stationery National Contracts,Administration
Land Registry,Land Registry,19/09/2013,Telford Office,Stationery National Contracts,Banner Business Services Ltd,Large,970263,1560.21,Stationery National Contracts,Administration
Land Registry,Land Registry,19/09/2013,Coventry Office,Stationery National Contracts,Banner Business Services Ltd,Large,970263,5486.69,Stationery National Contracts,Administration
Land Registry,Land Registry,19/09/2013,Hull Office,Stationery National Contracts,Banner Business Services Ltd,Large,970263,1691.78,Stationery National Contracts,Administration
Land Registry,Land Registry,19/09/2013,Wales Office,Stationery National Contracts,Banner Business Services Ltd,Large,970263,3334.4,Stationery National Contracts,Administration
Land Registry,Land Registry,19/09/2013,Nottingham Office,Waste Disposal,Banner Business Services Ltd,Large,970263,149.5,Waste Disposal,Administration
Land Registry,Land Registry,19/09/2013,Land Charges,Stationery National Contracts,Banner Business Services Ltd,Large,970263,628.81,Stationery National Contracts,Administration
Land Registry,Land Registry,19/09/2013,Central Facilities Management Team,Waste Disposal,Banner Business Services Ltd,Large,970263,23454.55,Waste Disposal,Administration
Land Registry,Land Registry,19/09/2013,IS Service Delivery,Stationery National Contracts,Banner Business Services Ltd,Large,970263,17501.47,Stationery National Contracts,Administration
Land Registry,Land Registry,19/09/2013,Governance & Policy,Stationery National Contracts,Banner Business Services Ltd,Large,970263,141.28,Stationery National Contracts,Administration
Land Registry,Land Registry,19/09/2013,Finance Group,Stationery National Contracts,Banner Business Services Ltd,Large,970263,182.55,Stationery National Contracts,Administration
Land Registry,Land Registry,19/09/2013,Corp Procurement,Stationery National Contracts,Banner Business Services Ltd,Large,970263,18.48,Stationery National Contracts,Administration
Land Registry,Land Registry,19/09/2013,Projects and Programme Centre,Stationery National Contracts,Banner Business Services Ltd,Large,970263,55.7,Stationery National Contracts,Administration
Land Registry,Land Registry,19/09/2013,HR,Stationery National Contracts,Banner Business Services Ltd,Large,970263,131.55,Stationery National Contracts,Administration
Land Registry,Land Registry,19/09/2013,Dir: HR,Stationery Local Purchases,Banner Business Services Ltd,Large,970263,51.64,Stationery Local Purchases,Administration
Land Registry,Land Registry,19/09/2013,Chief Executives Office,Stationery National Contracts,Banner Business Services Ltd,Large,970263,176.4,Stationery National Contracts,Administration
Land Registry,Land Registry,19/09/2013,Capability,Stationery National Contracts,Banner Business Services Ltd,Large,970263,12.6,Stationery National Contracts,Administration
Land Registry,Land Registry,19/09/2013,Central Operations Group,Stationery National Contracts,Banner Business Services Ltd,Large,970263,58.97,Stationery National Contracts,Administration
Land Registry,Land Registry,19/09/2013,Internal Solutions Group,Stationery National Contracts,Banner Business Services Ltd,Large,970263,106.37,Stationery National Contracts,Administration
Land Registry,Land Registry,19/09/2013,Central RFS,Stationery National Contracts,Banner Business Services Ltd,Large,970263,814.82,Stationery National Contracts,Administration
Land Registry,Land Registry,19/09/2013,Research & Data Mining,Stationery National Contracts,Banner Business Services Ltd,Large,970263,16.5,Stationery National Contracts,Administration
Land Registry,Land Registry,19/09/2013,Customer Services,Stationery National Contracts,Banner Business Services Ltd,Large,970263,46.76,Stationery National Contracts,Administration
Land Registry,Land Registry,19/09/2013,International Unit,Stationery National Contracts,Banner Business Services Ltd,Large,970263,34.04,Stationery National Contracts,Administration
Land Registry,Land Registry,19/09/2013,Central RFS,RFS Outsourced Services,TNT (UK) Ltd,Large,970271,183320.82,File Store Outsourced Services,Administration
Land Registry,Land Registry,19/09/2013,Central RFS,RFS Outsourced Services,TNT (UK) Ltd,Large,970271,106314.62,File Store Outsourced Services,Administration
Land Registry,Land Registry,20/09/2013,IS Service Delivery,DITI Managed Service,Steria Limited,Large,970536,695776.08,IT Managed Service,Administration
Land Registry,Land Registry,20/09/2013,Gloucester Office,Rent Payable,Greenridge Echo General Partner Ltd,SME,474093,211500,Rent Payable,Administration
Land Registry,Land Registry,20/09/2013,Nottingham Office,Rates Payable,Nottingham City Council,Large,474096,40642,Rates Payable,Administration
Land Registry,Land Registry,23/09/2013,Central Facilities Management Team,Letter Post,DX Network Services Ltd,Large,970956,453366.15,Letter Post,Administration
Land Registry,Land Registry,23/09/2013,Director of Information Systems,Travel & Subsistence General Duty,Redfern Travel Ltd,Large,970762,319.7,Travel & Subsistence General Duty,Administration
Land Registry,Land Registry,23/09/2013,Peterborough Office,Travel & Subsistence General Duty,Redfern Travel Ltd,Large,970762,107.77,Travel & Subsistence General Duty,Administration
Land Registry,Land Registry,23/09/2013,Employee & Management Support Manager,Travel & Subsistence General Duty,Redfern Travel Ltd,Large,970762,161.25,Travel & Subsistence General Duty,Administration
Land Registry,Land Registry,23/09/2013,Croydon Office,Travel & Subsistence General Duty,Redfern Travel Ltd,Large,970762,70.73,Travel & Subsistence General Duty,Administration
Land Registry,Land Registry,23/09/2013,Central Facilities Management Team,Travel & Subsistence General Duty,Redfern Travel Ltd,Large,970762,1546.91,Travel & Subsistence General Duty,Administration
Land Registry,Land Registry,23/09/2013,Gloucester Office,Travel & Subsistence General Duty,Redfern Travel Ltd,Large,970762,173.17,Travel & Subsistence General Duty,Administration
Land Registry,Land Registry,23/09/2013,IS Service Delivery,Travel & Subsistence General Duty,Redfern Travel Ltd,Large,970762,735.66,Travel & Subsistence General Duty,Administration
Land Registry,Land Registry,23/09/2013,Survey & Mapping Services,Travel & Subsistence General Duty,Redfern Travel Ltd,Large,970762,264.96,Travel & Subsistence General Duty,Administration
Land Registry,Land Registry,23/09/2013,Hull Office,Travel & Subsistence General Duty,Redfern Travel Ltd,Large,970762,570.49,Travel & Subsistence General Duty,Administration
Land Registry,Land Registry,23/09/2013,Leicester Office,Travel & Subsistence General Duty,Redfern Travel Ltd,Large,970762,582.19,Travel & Subsistence General Duty,Administration
Land Registry,Land Registry,23/09/2013,Property Asset Management Group,Travel & Subsistence General Duty,Redfern Travel Ltd,Large,970762,524.42,Travel & Subsistence General Duty,Administration
Land Registry,Land Registry,23/09/2013,Durham Office,Travel & Subsistence General Duty,Redfern Travel Ltd,Large,970762,-10.35,Travel & Subsistence General Duty,Administration
Land Registry,Land Registry,23/09/2013,Birkenhead Office,Travel & Subsistence General Duty,Redfern Travel Ltd,Large,970762,391.74,Travel & Subsistence General Duty,Administration
Land Registry,Land Registry,23/09/2013,LR Sports Council,Travel & Subsistence General Duty,Redfern Travel Ltd,Large,970762,266.26,Travel & Subsistence General Duty,Administration
Land Registry,Land Registry,23/09/2013,Director of Legal Services,Travel & Subsistence General Duty,Redfern Travel Ltd,Large,970762,293.8,Travel & Subsistence General Duty,Administration
Land Registry,Land Registry,23/09/2013,Independent Complaints Reviewer,Travel & Subsistence General Duty,Redfern Travel Ltd,Large,970762,245.17,Travel & Subsistence General Duty,Administration
Land Registry,Land Registry,23/09/2013,National Lawyer Training,Travel & Subsistence General Duty,Redfern Travel Ltd,Large,970762,441.23,Travel & Subsistence General Duty,Administration
Land Registry,Land Registry,23/09/2013,Corporate Legal Services,Travel & Subsistence General Duty,Redfern Travel Ltd,Large,970762,1177.81,Travel & Subsistence General Duty,Administration
Land Registry,Land Registry,23/09/2013,Guarantee & Litigation,Travel & Subsistence General Duty,Redfern Travel Ltd,Large,970762,372.74,Travel & Subsistence General Duty,Administration
Land Registry,Land Registry,23/09/2013,Technical Assurance Group,Travel & Subsistence General Duty,Redfern Travel Ltd,Large,970762,71.98,Travel & Subsistence General Duty,Administration
Land Registry,Land Registry,23/09/2013,Learning and Development,Travel & Subsistence General Duty,Redfern Travel Ltd,Large,970762,1594.25,Travel & Subsistence General Duty,Administration
Land Registry,Land Registry,23/09/2013,Governance & Policy,Travel & Subsistence General Duty,Redfern Travel Ltd,Large,970762,560.51,Travel & Subsistence General Duty,Administration
Land Registry,Land Registry,23/09/2013,Finance Group,Travel & Subsistence General Duty,Redfern Travel Ltd,Large,970762,192.81,Travel & Subsistence General Duty,Administration
Land Registry,Land Registry,23/09/2013,Business Development,Travel & Subsistence General Duty,Redfern Travel Ltd,Large,970762,532.73,Travel & Subsistence General Duty,Administration
Land Registry,Land Registry,23/09/2013,Capability,Travel & Subsistence General Duty,Redfern Travel Ltd,Large,970762,516.01,Travel & Subsistence General Duty,Administration
Land Registry,Land Registry,23/09/2013,Internal Solutions Group,Travel & Subsistence General Duty,Redfern Travel Ltd,Large,970762,866.48,Travel & Subsistence General Duty,Administration
Land Registry,Land Registry,23/09/2013,Internal Audit,Travel & Subsistence General Duty,Redfern Travel Ltd,Large,970762,576.77,Travel & Subsistence General Duty,Administration
Land Registry,Land Registry,23/09/2013,Customer Services,Travel & Subsistence General Duty,Redfern Travel Ltd,Large,970762,128.88,Travel & Subsistence General Duty,Administration
Land Registry,Land Registry,23/09/2013,International Unit,Travel & Subsistence General Duty,Redfern Travel Ltd,Large,970762,612.46,Travel & Subsistence General Duty,Administration
Land Registry,Land Registry,23/09/2013,Commercial Director,Travel & Subsistence General Duty,Redfern Travel Ltd,Large,970762,140.39,Travel & Subsistence General Duty,Administration
Land Registry,Land Registry,23/09/2013,Product Development & Management,Travel & Subsistence General Duty,Redfern Travel Ltd,Large,970762,574.7,Travel & Subsistence General Duty,Administration
Land Registry,Land Registry,23/09/2013,Marketing Services Team,Travel & Subsistence General Duty,Redfern Travel Ltd,Large,970762,345.18,Travel & Subsistence General Duty,Administration
Land Registry,Land Registry,23/09/2013,HR,Travel & Subsistence General Duty,Redfern Travel Ltd,Large,970762,3274.73,Travel & Subsistence General Duty,Administration
Land Registry,Land Registry,23/09/2013,Research & Data Mining,Travel & Subsistence General Duty,Redfern Travel Ltd,Large,970762,21.7,Travel & Subsistence General Duty,Administration
Land Registry,Land Registry,23/09/2013,Stakeholder Management,Travel & Subsistence General Duty,Redfern Travel Ltd,Large,970762,38.72,Travel & Subsistence General Duty,Administration
Land Registry,Land Registry,23/09/2013,Commercial & Customer Strategy & Performance,Travel & Subsistence General Duty,Redfern Travel Ltd,Large,970762,-312.05,Travel & Subsistence General Duty,Administration
Land Registry,Land Registry,23/09/2013,Central Operations Group,Travel & Subsistence General Duty,Redfern Travel Ltd,Large,970762,2185.26,Travel & Subsistence General Duty,Administration
Land Registry,Land Registry,23/09/2013,Chief Executives Office,Travel & Subsistence General Duty,Redfern Travel Ltd,Large,970762,219.03,Travel & Subsistence General Duty,Administration
Land Registry,Land Registry,23/09/2013,Dir: HR,Travel & Subsistence General Duty,Redfern Travel Ltd,Large,970762,2921.88,Travel & Subsistence General Duty,Administration
Land Registry,Land Registry,23/09/2013,Dir: Legal Services,Travel & Subsistence General Duty,Redfern Travel Ltd,Large,970762,936.38,Travel & Subsistence General Duty,Administration
Land Registry,Land Registry,23/09/2013,Dir: (Statutory) Commercial & Customer,Travel & Subsistence General Duty,Redfern Travel Ltd,Large,970762,2168.15,Travel & Subsistence General Duty,Administration
Land Registry,Land Registry,23/09/2013,Strategy Team,Travel & Subsistence General Duty,Redfern Travel Ltd,Large,970762,5.41,Travel & Subsistence General Duty,Administration
Land Registry,Land Registry,23/09/2013,LR Board & Board Chair,Travel & Subsistence General Duty,Redfern Travel Ltd,Large,970762,175.3,Travel & Subsistence General Duty,Administration
Land Registry,Land Registry,24/09/2013,IS Service Delivery,Computer Equipment Maintenance,IBM United Kingdom Ltd,Large,970936,44996.44,Computer Equipment Maintenance,Administration
Land Registry,Land Registry,24/09/2013,Director of Information Systems,Travel & Subsistence General Duty,Redfern Travel Ltd,Large,970950,240.85,Travel & Subsistence General Duty,Administration
Land Registry,Land Registry,24/09/2013,Croydon Office,Travel & Subsistence General Duty,Redfern Travel Ltd,Large,970950,103.12,Travel & Subsistence General Duty,Administration
Land Registry,Land Registry,24/09/2013,Central Facilities Management Team,Travel & Subsistence General Duty,Redfern Travel Ltd,Large,970950,1558.82,Travel & Subsistence General Duty,Administration
Land Registry,Land Registry,24/09/2013,Wales Office,Travel & Subsistence General Duty,Redfern Travel Ltd,Large,970950,438.73,Travel & Subsistence General Duty,Administration
Land Registry,Land Registry,24/09/2013,Director of Operations,Travel & Subsistence General Duty,Redfern Travel Ltd,Large,970950,88.08,Travel & Subsistence General Duty,Administration
Land Registry,Land Registry,24/09/2013,Gloucester Office,Travel & Subsistence General Duty,Redfern Travel Ltd,Large,970950,84.83,Travel & Subsistence General Duty,Administration
Land Registry,Land Registry,24/09/2013,IS Service Delivery,Travel & Subsistence General Duty,Redfern Travel Ltd,Large,970950,669.98,Travel & Subsistence General Duty,Administration
Land Registry,Land Registry,24/09/2013,Survey & Mapping Services,Travel & Subsistence General Duty,Redfern Travel Ltd,Large,970950,39.03,Travel & Subsistence General Duty,Administration
Land Registry,Land Registry,24/09/2013,Hull Office,Travel & Subsistence General Duty,Redfern Travel Ltd,Large,970950,212.36,Travel & Subsistence General Duty,Administration
Land Registry,Land Registry,24/09/2013,Property Asset Management Group,Travel & Subsistence General Duty,Redfern Travel Ltd,Large,970950,932.84,Travel & Subsistence General Duty,Administration
Land Registry,Land Registry,24/09/2013,Durham Office,Travel & Subsistence General Duty,Redfern Travel Ltd,Large,970950,81.76,Travel & Subsistence General Duty,Administration
Land Registry,Land Registry,24/09/2013,Nottingham Office,Travel & Subsistence General Duty,Redfern Travel Ltd,Large,970950,154.02,Travel & Subsistence General Duty,Administration
Land Registry,Land Registry,24/09/2013,Birkenhead Office,Travel & Subsistence General Duty,Redfern Travel Ltd,Large,970950,223.5,Travel & Subsistence General Duty,Administration
Land Registry,Land Registry,24/09/2013,Director of Legal Services,Travel & Subsistence General Duty,Redfern Travel Ltd,Large,970950,-106.69,Travel & Subsistence General Duty,Administration
Land Registry,Land Registry,24/09/2013,National Lawyer Training,Travel & Subsistence General Duty,Redfern Travel Ltd,Large,970950,275.37,Travel & Subsistence General Duty,Administration
Land Registry,Land Registry,24/09/2013,Corporate Legal Services,Travel & Subsistence General Duty,Redfern Travel Ltd,Large,970950,356.99,Travel & Subsistence General Duty,Administration
Land Registry,Land Registry,24/09/2013,Guarantee & Litigation,Travel & Subsistence General Duty,Redfern Travel Ltd,Large,970950,82.04,Travel & Subsistence General Duty,Administration
Land Registry,Land Registry,24/09/2013,Learning and Development,Travel & Subsistence General Duty,Redfern Travel Ltd,Large,970950,282.35,Travel & Subsistence General Duty,Administration
Land Registry,Land Registry,24/09/2013,Governance & Policy,Travel & Subsistence General Duty,Redfern Travel Ltd,Large,970950,547.34,Travel & Subsistence General Duty,Administration
Land Registry,Land Registry,24/09/2013,Business Development,Travel & Subsistence General Duty,Redfern Travel Ltd,Large,970950,1018.42,Travel & Subsistence General Duty,Administration
Land Registry,Land Registry,24/09/2013,Capability,Travel & Subsistence General Duty,Redfern Travel Ltd,Large,970950,424.6,Travel & Subsistence General Duty,Administration
Land Registry,Land Registry,24/09/2013,Internal Solutions Group,Travel & Subsistence General Duty,Redfern Travel Ltd,Large,970950,3235.82,Travel & Subsistence General Duty,Administration
Land Registry,Land Registry,24/09/2013,Internal Audit,Travel & Subsistence General Duty,Redfern Travel Ltd,Large,970950,777.24,Travel & Subsistence General Duty,Administration
Land Registry,Land Registry,24/09/2013,Customer Services,Travel & Subsistence General Duty,Redfern Travel Ltd,Large,970950,123.76,Travel & Subsistence General Duty,Administration
Land Registry,Land Registry,24/09/2013,International Unit,Travel & Subsistence General Duty,Redfern Travel Ltd,Large,970950,687.85,Travel & Subsistence General Duty,Administration
Land Registry,Land Registry,24/09/2013,Corp Procurement,Travel & Subsistence General Duty,Redfern Travel Ltd,Large,970950,535.18,Travel & Subsistence General Duty,Administration
Land Registry,Land Registry,24/09/2013,Commercial Director,Travel & Subsistence General Duty,Redfern Travel Ltd,Large,970950,359.87,Travel & Subsistence General Duty,Administration
Land Registry,Land Registry,24/09/2013,Product Development & Management,Travel & Subsistence General Duty,Redfern Travel Ltd,Large,970950,577.04,Travel & Subsistence General Duty,Administration
Land Registry,Land Registry,24/09/2013,Marketing Services Team,Travel & Subsistence General Duty,Redfern Travel Ltd,Large,970950,120.8,Travel & Subsistence General Duty,Administration
Land Registry,Land Registry,24/09/2013,HR,Travel & Subsistence General Duty,Redfern Travel Ltd,Large,970950,2469.57,Travel & Subsistence General Duty,Administration
Land Registry,Land Registry,24/09/2013,Research & Data Mining,Travel & Subsistence General Duty,Redfern Travel Ltd,Large,970950,169.6,Travel & Subsistence General Duty,Administration
Land Registry,Land Registry,24/09/2013,Stakeholder Management,Travel & Subsistence General Duty,Redfern Travel Ltd,Large,970950,20.82,Travel & Subsistence General Duty,Administration
Land Registry,Land Registry,24/09/2013,Commercial & Customer Strategy & Performance,Travel & Subsistence General Duty,Redfern Travel Ltd,Large,970950,325.1,Travel & Subsistence General Duty,Administration
Land Registry,Land Registry,24/09/2013,Central Operations Group,Travel & Subsistence General Duty,Redfern Travel Ltd,Large,970950,2670.19,Travel & Subsistence General Duty,Administration
Land Registry,Land Registry,24/09/2013,Chief Executives Office,Travel & Subsistence General Duty,Redfern Travel Ltd,Large,970950,247.08,Travel & Subsistence General Duty,Administration
Land Registry,Land Registry,24/09/2013,Dir: HR,Travel & Subsistence General Duty,Redfern Travel Ltd,Large,970950,3388.28,Travel & Subsistence General Duty,Administration
Land Registry,Land Registry,24/09/2013,Dir: Legal Services,Travel & Subsistence General Duty,Redfern Travel Ltd,Large,970950,145.95,Travel & Subsistence General Duty,Administration
Land Registry,Land Registry,24/09/2013,Dir: (Statutory) Commercial & Customer,Travel & Subsistence General Duty,Redfern Travel Ltd,Large,970950,6762.94,Travel & Subsistence General Duty,Administration
Land Registry,Land Registry,24/09/2013,Dir: Finance,Travel & Subsistence General Duty,Redfern Travel Ltd,Large,970950,-33.16,Travel & Subsistence General Duty,Administration
Land Registry,Land Registry,24/09/2013,Strategy Team,Travel & Subsistence General Duty,Redfern Travel Ltd,Large,970950,162.55,Travel & Subsistence General Duty,Administration
Land Registry,Land Registry,24/09/2013,LR Board & Board Chair,Travel & Subsistence General Duty,Redfern Travel Ltd,Large,970950,70.98,Travel & Subsistence General Duty,Administration
Land Registry,Land Registry,24/09/2013,RFS11 - Plymouth,Rent Payable,Canada Life Ltd,Large,474173,39012,Rent Payable,Administration
Land Registry,Land Registry,24/09/2013,Property Asset Management Group,Rent Payable,Telford Properties 2003 Ltd,SME,474195,66771,Rent Payable,Administration
Land Registry,Land Registry,24/09/2013,Property Asset Management Group,Rent Payable,Collier & Madge Plc,Large,474174,135000,Rent Payable,Administration
Land Registry,Land Registry,24/09/2013,Governance & Policy,Rent Payable,GBR Phoenix Beard Property Consultants,SME,474176,29550,Rent Payable,Administration
Land Registry,Land Registry,24/09/2013,Nottingham Office,Rent Payable,Dtz Debenham Tie Leung Ltd,SME,474175,183577.5,Rent Payable,Administration
Land Registry,Land Registry,24/09/2013,Property Asset Management Group,Rent Payable,Jones Lang LaSalle Ltd,Large,474180,5283.9,Rent Payable,Administration
Land Registry,Land Registry,26/09/2013,Property Asset Management Group,Rates Payable,Stevenage Borough Council,Large,213038,3956,Rates Payable,Administration
Land Registry,Land Registry,26/09/2013,Property Asset Management Group,Rates Payable,Stevenage Borough Council,Large,213038,26376,Rates Payable,Administration
Land Registry,Land Registry,26/09/2013,Gloucester Office,Rates Payable,Gloucester City Council,Large,213021,22912.42,Rates Payable,Administration
Land Registry,Land Registry,26/09/2013,Governance & Policy,Rates Payable,City of Plymouth,Large,213015,35325,Rates Payable,Administration
Land Registry,Land Registry,26/09/2013,Durham Office,Rates Payable,Durham County Council,Large,213019,22877,Rates Payable,Administration
Land Registry,Land Registry,26/09/2013,Property Asset Management Group,Rates Payable,City of York Council,Large,213016,20724,Rates Payable,Administration
Land Registry,Land Registry,26/09/2013,Coventry Office,Rates Payable,Coventry City Council,Large,213018,43568,Rates Payable,Administration
Land Registry,Land Registry,26/09/2013,Peterborough Office,Rates Payable,Peterborough City Council,Large,213035,2661,Rates Payable,Administration
Land Registry,Land Registry,26/09/2013,Peterborough Office,Rates Payable,Peterborough City Council,Large,213035,2496,Rates Payable,Administration
Land Registry,Land Registry,26/09/2013,Peterborough Office,Rates Payable,Peterborough City Council,Large,213035,2732,Rates Payable,Administration
Land Registry,Land Registry,26/09/2013,Leicester Office,Rates Payable,Leicester City Council,Large,213024,17663,Rates Payable,Administration
Land Registry,Land Registry,26/09/2013,Fylde Office,Rates Payable,Fylde Borough Council,Large,213020,17545,Rates Payable,Administration
Land Registry,Land Registry,26/09/2013,Hull Office,Rates Payable,Kingston Upon Hull City Council,Large,213023,11850,Rates Payable,Administration
Land Registry,Land Registry,26/09/2013,Wales Office,Rates Payable,City & County of Swansea,Large,213014,2100,Rates Payable,Administration
Land Registry,Land Registry,26/09/2013,Wales Office,Rates Payable,City & County of Swansea,Large,213014,16936,Rates Payable,Administration
Land Registry,Land Registry,26/09/2013,Gloucester Computer Centre,Rates Payable,Tewkesbury Borough Council,Large,213040,11257,Rates Payable,Administration
Land Registry,Land Registry,26/09/2013,Peterborough Office,Rates Payable,Peterborough City Council,Large,213035,2591,Rates Payable,Administration
Land Registry,Land Registry,26/09/2013,Governance & Policy,Rates Payable,City of Plymouth,Large,213015,17024,Rates Payable,Administration
Land Registry,Land Registry,26/09/2013,Durham Office,Rates Payable,Durham County Council,Large,213019,1225,Rates Payable,Administration
Land Registry,Land Registry,27/09/2013,Governance & Policy,Rates Payable,South Hams District Council,Large,474317,4616,Rates Payable,Administration
Land Registry,Land Registry,27/09/2013,Telford Office,Rates Payable,Telford & Wrekin Council,Large,474318,21429.71,Rates Payable,Administration
Land Registry,Land Registry,27/09/2013,Telford Office,Rates Payable,Telford & Wrekin Council,Large,474318,21000,Rates Payable,Administration
Land Registry,Land Registry,30/09/2013,Business Continuity,Travel & Subsistence General Duty,Redfern Travel Ltd,Large,971830,362.57,Travel & Subsistence General Duty,Administration
Land Registry,Land Registry,30/09/2013,Director of Information Systems,Travel & Subsistence General Duty,Redfern Travel Ltd,Large,971830,70.98,Travel & Subsistence General Duty,Administration
Land Registry,Land Registry,30/09/2013,Peterborough Office,Travel & Subsistence General Duty,Redfern Travel Ltd,Large,971830,344.14,Travel & Subsistence General Duty,Administration
Land Registry,Land Registry,30/09/2013,Employee & Management Support Manager,Travel & Subsistence General Duty,Redfern Travel Ltd,Large,971830,58.69,Travel & Subsistence General Duty,Administration
Land Registry,Land Registry,30/09/2013,Croydon Office,Travel & Subsistence General Duty,Redfern Travel Ltd,Large,971830,210.82,Travel & Subsistence General Duty,Administration
Land Registry,Land Registry,30/09/2013,Central Facilities Management Team,Travel & Subsistence General Duty,Redfern Travel Ltd,Large,971830,1115.69,Travel & Subsistence General Duty,Administration
Land Registry,Land Registry,30/09/2013,Fylde Office,Travel & Subsistence General Duty,Redfern Travel Ltd,Large,971830,63.36,Travel & Subsistence General Duty,Administration
Land Registry,Land Registry,30/09/2013,Gloucester Office,Travel & Subsistence General Duty,Redfern Travel Ltd,Large,971830,47.12,Travel & Subsistence General Duty,Administration
Land Registry,Land Registry,30/09/2013,IS Service Delivery,Travel & Subsistence General Duty,Redfern Travel Ltd,Large,971830,1258.76,Travel & Subsistence General Duty,Administration
Land Registry,Land Registry,30/09/2013,Survey & Mapping Services,Travel & Subsistence General Duty,Redfern Travel Ltd,Large,971830,261.57,Travel & Subsistence General Duty,Administration
Land Registry,Land Registry,30/09/2013,Hull Office,Travel & Subsistence General Duty,Redfern Travel Ltd,Large,971830,167.51,Travel & Subsistence General Duty,Administration
Land Registry,Land Registry,30/09/2013,Property Asset Management Group,Travel & Subsistence General Duty,Redfern Travel Ltd,Large,971830,1254.38,Travel & Subsistence General Duty,Administration
Land Registry,Land Registry,30/09/2013,Durham Office,Travel & Subsistence General Duty,Redfern Travel Ltd,Large,971830,42.15,Travel & Subsistence General Duty,Administration
Land Registry,Land Registry,30/09/2013,Birkenhead Office,Travel & Subsistence General Duty,Redfern Travel Ltd,Large,971830,69.81,Travel & Subsistence General Duty,Administration
Land Registry,Land Registry,30/09/2013,Director of Legal Services,Travel & Subsistence General Duty,Redfern Travel Ltd,Large,971830,70.98,Travel & Subsistence General Duty,Administration
Land Registry,Land Registry,30/09/2013,Corporate Legal Services,Travel & Subsistence General Duty,Redfern Travel Ltd,Large,971830,311.59,Travel & Subsistence General Duty,Administration
Land Registry,Land Registry,30/09/2013,Guarantee & Litigation,Travel & Subsistence General Duty,Redfern Travel Ltd,Large,971830,291.12,Travel & Subsistence General Duty,Administration
Land Registry,Land Registry,30/09/2013,Registration Legal Services Group,Travel & Subsistence General Duty,Redfern Travel Ltd,Large,971830,290.05,Travel & Subsistence General Duty,Administration
Land Registry,Land Registry,30/09/2013,Learning and Development,Travel & Subsistence General Duty,Redfern Travel Ltd,Large,971830,142.46,Travel & Subsistence General Duty,Administration
Land Registry,Land Registry,30/09/2013,Governance & Policy,Travel & Subsistence General Duty,Redfern Travel Ltd,Large,971830,552.24,Travel & Subsistence General Duty,Administration
Land Registry,Land Registry,30/09/2013,Finance Group,Travel & Subsistence General Duty,Redfern Travel Ltd,Large,971830,218.01,Travel & Subsistence General Duty,Administration
Land Registry,Land Registry,30/09/2013,Business Development,Travel & Subsistence General Duty,Redfern Travel Ltd,Large,971830,130.69,Travel & Subsistence General Duty,Administration
Land Registry,Land Registry,30/09/2013,Capability,Travel & Subsistence General Duty,Redfern Travel Ltd,Large,971830,303.36,Travel & Subsistence General Duty,Administration
Land Registry,Land Registry,30/09/2013,Internal Solutions Group,Travel & Subsistence General Duty,Redfern Travel Ltd,Large,971830,2974.63,Travel & Subsistence General Duty,Administration
Land Registry,Land Registry,30/09/2013,Internal Audit,Travel & Subsistence General Duty,Redfern Travel Ltd,Large,971830,212.13,Travel & Subsistence General Duty,Administration
Land Registry,Land Registry,30/09/2013,Customer Services,Travel & Subsistence General Duty,Redfern Travel Ltd,Large,971830,159.96,Travel & Subsistence General Duty,Administration
Land Registry,Land Registry,30/09/2013,International Unit,Travel & Subsistence General Duty,Redfern Travel Ltd,Large,971830,205.9,Travel & Subsistence General Duty,Administration
Land Registry,Land Registry,30/09/2013,Projects and Programme Centre,Travel & Subsistence General Duty,Redfern Travel Ltd,Large,971830,404.46,Travel & Subsistence General Duty,Administration
Land Registry,Land Registry,30/09/2013,Corp Procurement,Travel & Subsistence General Duty,Redfern Travel Ltd,Large,971830,694.16,Travel & Subsistence General Duty,Administration
Land Registry,Land Registry,30/09/2013,Commercial Director,Travel & Subsistence General Duty,Redfern Travel Ltd,Large,971830,355.02,Travel & Subsistence General Duty,Administration
Land Registry,Land Registry,30/09/2013,Product Development & Management,Travel & Subsistence General Duty,Redfern Travel Ltd,Large,971830,569.32,Travel & Subsistence General Duty,Administration
Land Registry,Land Registry,30/09/2013,Marketing Services Team,Travel & Subsistence General Duty,Redfern Travel Ltd,Large,971830,368.94,Travel & Subsistence General Duty,Administration
Land Registry,Land Registry,30/09/2013,HR,Travel & Subsistence General Duty,Redfern Travel Ltd,Large,971830,2436.64,Travel & Subsistence General Duty,Administration
Land Registry,Land Registry,30/09/2013,Research & Data Mining,Travel & Subsistence General Duty,Redfern Travel Ltd,Large,971830,123.03,Travel & Subsistence General Duty,Administration
Land Registry,Land Registry,30/09/2013,Commercial & Customer Strategy & Performance,Travel & Subsistence General Duty,Redfern Travel Ltd,Large,971830,360.25,Travel & Subsistence General Duty,Administration
Land Registry,Land Registry,30/09/2013,Central Operations Group,Travel & Subsistence General Duty,Redfern Travel Ltd,Large,971830,2260.17,Travel & Subsistence General Duty,Administration
Land Registry,Land Registry,30/09/2013,Chief Executives Office,Travel & Subsistence General Duty,Redfern Travel Ltd,Large,971830,318,Travel & Subsistence General Duty,Administration
Land Registry,Land Registry,30/09/2013,Dir: (Add Value) Commercial & Customer,Travel & Subsistence General Duty,Redfern Travel Ltd,Large,971830,35.82,Travel & Subsistence General Duty,Administration
Land Registry,Land Registry,30/09/2013,Dir: HR,Travel & Subsistence General Duty,Redfern Travel Ltd,Large,971830,4349.82,Travel & Subsistence General Duty,Administration
Land Registry,Land Registry,30/09/2013,Dir: Legal Services,Travel & Subsistence General Duty,Redfern Travel Ltd,Large,971830,780.69,Travel & Subsistence General Duty,Administration
Land Registry,Land Registry,30/09/2013,Dir: (Statutory) Commercial & Customer,Travel & Subsistence General Duty,Redfern Travel Ltd,Large,971830,1270,Travel & Subsistence General Duty,Administration
Land Registry,Land Registry,30/09/2013,Dir: Finance,Travel & Subsistence General Duty,Redfern Travel Ltd,Large,971830,108.18,Travel & Subsistence General Duty,Administration
Land Registry,Land Registry,30/09/2013,Strategy Team,Travel & Subsistence General Duty,Redfern Travel Ltd,Large,971830,114.64,Travel & Subsistence General Duty,Administration
Land Registry,Land Registry,30/09/2013,LR Board & Board Chair,Travel & Subsistence General Duty,Redfern Travel Ltd,Large,971830,69.81,Travel & Subsistence General Duty,Administration
Land Registry,Land Registry,30/09/2013,Plymouth Office,Reprographic Copy Costs,Steria Limited,Large,971833,814.6,Reprographic Copy Costs,Administration
Land Registry,Land Registry,30/09/2013,Telford Office,Reprographic Copy Costs,Steria Limited,Large,971833,234.01,Reprographic Copy Costs,Administration
Land Registry,Land Registry,30/09/2013,Wales Office,Reprographic Copy Costs,Steria Limited,Large,971833,848.45,Reprographic Copy Costs,Administration
Land Registry,Land Registry,30/09/2013,Coventry Office,Reprographic Copy Costs,Steria Limited,Large,971833,82.4,Reprographic Copy Costs,Administration
Land Registry,Land Registry,30/09/2013,Durham Office,Reprographic Copy Costs,Steria Limited,Large,971833,360.56,Reprographic Copy Costs,Administration
Land Registry,Land Registry,30/09/2013,Fylde Office,Reprographic Copy Costs,Steria Limited,Large,971833,744.95,Reprographic Copy Costs,Administration
Land Registry,Land Registry,30/09/2013,Peterborough Office,Reprographic Copy Costs,Steria Limited,Large,971833,176.7,Reprographic Copy Costs,Administration
Land Registry,Land Registry,30/09/2013,Croydon Office,Reprographic Copy Costs,Steria Limited,Large,971833,870.14,Reprographic Copy Costs,Administration
Land Registry,Land Registry,30/09/2013,Gloucester Office,Reprographic Copy Costs,Steria Limited,Large,971833,615.04,Reprographic Copy Costs,Administration
Land Registry,Land Registry,30/09/2013,Leicester Office,Reprographic Copy Costs,Steria Limited,Large,971833,310.75,Reprographic Copy Costs,Administration
Land Registry,Land Registry,30/09/2013,Weymouth Office,Reprographic Copy Costs,Steria Limited,Large,971833,435.72,Reprographic Copy Costs,Administration
Land Registry,Land Registry,30/09/2013,Hull Office,Reprographic Copy Costs,Steria Limited,Large,971833,493.66,Reprographic Copy Costs,Administration
Land Registry,Land Registry,30/09/2013,Nottingham Office,Reprographic Copy Costs,Steria Limited,Large,971833,694.84,Reprographic Copy Costs,Administration
Land Registry,Land Registry,30/09/2013,Birkenhead Office,Reprographic Copy Costs,Steria Limited,Large,971833,533.93,Reprographic Copy Costs,Administration
Land Registry,Land Registry,30/09/2013,IS Service Delivery,Reprographic Copy Costs,Steria Limited,Large,971833,14.02,Reprographic Copy Costs,Administration
Land Registry,Land Registry,30/09/2013,IS Service Delivery,DITI Printer Managed Service,Steria Limited,Large,971833,75978.6,IT Printer Managed Service,Administration
Land Registry,Land Registry,30/09/2013,Croydon Office,Rates Payable,Croydon Council,Large,213042,27987,Rates Payable,Administration
Land Registry,Land Registry,30/09/2013,Governance & Policy,Rent Payable,GBR Phoenix Beard Property Consultants,SME,213045,1020,Rent Payable,Administration
Land Registry,Land Registry,30/09/2013,Governance & Policy,Rates Payable,South Hams District Council,Large,213050,8720,Rates Payable,Administration
Land Registry,Land Registry,30/09/2013,Governance & Policy,Rates Payable,South Hams District Council,Large,213050,8720,Rates Payable,Administration
